[Event "*** Titled Tuesday Blitz"]
[Site "Chess.com"]
[Date "2020.04.07"]
[Round "9"]
[White "IMDT02"]
[Black "BeanScreen"]
[Result "1-0"]
[WhiteElo "2491"]
[BlackElo "2606"]
[TimeControl "180+1"]
[EndTime "14:46:31 PDT"]
[Termination "IMDT02 won on time"]

1. d4 {[%clk 0:03:00.9]} 1... d5 {[%clk 0:02:59.4]} 2. c4 {[%clk 0:02:57.1]}
2... dxc4 {[%clk 0:03:00.3]} 3. e4 {[%clk 0:02:55.1]} 3... c5 {[%clk 0:02:59.9]}
4. d5 {[%clk 0:02:51.4]} 4... e6 {[%clk 0:02:59.9]} 5. Bxc4 {[%clk 0:02:51.1]}
5... exd5 {[%clk 0:02:58.6]} 6. Bxd5 {[%clk 0:02:52]} 6... Bd6 {[%clk
0:02:58.8]} 7. Nc3 {[%clk 0:02:50.3]} 7... Nf6 {[%clk 0:02:57.8]} 8. Nf3 {[%clk
0:02:49.3]} 8... Nxd5 {[%clk 0:02:56.9]} 9. Nxd5 {[%clk 0:02:48.7]} 9... O-O
{[%clk 0:02:57]} 10. O-O {[%clk 0:02:48.9]} 10... Bg4 {[%clk 0:02:55.4]} 11. h3
{[%clk 0:02:47]} 11... Bh5 {[%clk 0:02:55.5]} 12. Nf4 {[%clk 0:02:43.1]} 12...
Bxf3 {[%clk 0:02:31.8]} 13. Qxf3 {[%clk 0:02:37.9]} 13... Nc6 {[%clk 0:02:32.7]}
14. Be3 {[%clk 0:02:36.5]} 14... Re8 {[%clk 0:02:31.1]} 15. Rad1 {[%clk
0:02:20.9]} 15... Qe7 {[%clk 0:02:22.9]} 16. Nh5 {[%clk 0:02:14.5]} 16... Rad8
{[%clk 0:02:17.7]} 17. Qg4 {[%clk 0:02:08]} 17... Be5 {[%clk 0:02:06.8]} 18. f4
{[%clk 0:01:48.2]} 18... Bxb2 {[%clk 0:02:05.4]} 19. e5 {[%clk 0:01:48.5]} 19...
f5 {[%clk 0:01:46.7]} 20. Qxf5 {[%clk 0:01:45.9]} 20... Bd4 {[%clk 0:01:45.5]}
21. Bxd4 {[%clk 0:01:38.5]} 21... Rxd4 {[%clk 0:01:43.6]} 22. Qg4 {[%clk
0:01:37.2]} 22... Red8 {[%clk 0:01:43]} 23. Rde1 {[%clk 0:01:35.3]} 23... Kh8
{[%clk 0:01:39.8]} 24. Ng3 {[%clk 0:01:32.5]} 24... c4 {[%clk 0:01:34.3]} 25.
Nf5 {[%clk 0:01:31.9]} 25... Qd7 {[%clk 0:01:28.4]} 26. Nxd4 {[%clk 0:01:27.7]}
26... Qxg4 {[%clk 0:01:15.7]} 27. hxg4 {[%clk 0:01:28.6]} 27... Nxd4 {[%clk
0:01:13.1]} 28. f5 {[%clk 0:01:20.1]} 28... c3 {[%clk 0:01:04.3]} 29. e6 {[%clk
0:01:16.1]} 29... b5 {[%clk 0:00:45.7]} 30. g5 {[%clk 0:01:12.6]} 30... c2
{[%clk 0:00:03.6]} 31. e7 {[%clk 0:01:09.2]} 31... Re8 {[%clk 0:00:03.1]} 32. f6
{[%clk 0:01:09.4]} 32... gxf6 {[%clk 0:00:02.7]} 33. gxf6 {[%clk 0:01:10.3]}
33... c1=Q {[%clk 0:00:01.3]} 34. Rxc1 {[%clk 0:01:10.2]} 34... Ne2+ {[%clk
0:00:02]} 35. Kh2 {[%clk 0:01:06.1]} 1-0

[Event "*** Titled Tuesday Blitz"]
[Site "Chess.com"]
[Date "2020.04.07"]
[Round "9"]
[White "joksijoksi"]
[Black "littleozy"]
[Result "1-0"]
[WhiteElo "2277"]
[BlackElo "2434"]
[TimeControl "180+1"]
[EndTime "14:46:31 PDT"]
[Termination "joksijoksi won by resignation"]

1. e4 {[%clk 0:03:00.9]} 1... c6 {[%clk 0:02:59.4]} 2. d4 {[%clk 0:02:59.6]}
2... d5 {[%clk 0:03:00.3]} 3. f3 {[%clk 0:02:52.6]} 3... e6 {[%clk 0:02:58.1]}
4. Nc3 {[%clk 0:02:51.3]} 4... Bb4 {[%clk 0:02:57.7]} 5. a3 {[%clk 0:02:49.4]}
5... Bxc3+ {[%clk 0:02:55.6]} 6. bxc3 {[%clk 0:02:50.3]} 6... dxe4 {[%clk
0:02:54.3]} 7. Nh3 {[%clk 0:02:50.1]} 7... exf3 {[%clk 0:02:46.3]} 8. Qxf3
{[%clk 0:02:51]} 8... Nf6 {[%clk 0:02:44.3]} 9. Bd3 {[%clk 0:02:49.2]} 9... Nbd7
{[%clk 0:02:42.1]} 10. O-O {[%clk 0:02:46.3]} 10... h6 {[%clk 0:02:40]} 11. Nf4
{[%clk 0:02:43.7]} 11... Qe7 {[%clk 0:02:23.7]} 12. a4 {[%clk 0:02:33.7]} 12...
Nb6 {[%clk 0:02:21.1]} 13. Ba3 {[%clk 0:02:30.7]} 13... Qc7 {[%clk 0:02:14.9]}
14. Nh5 {[%clk 0:02:03.9]} 14... Nxh5 {[%clk 0:02:08.7]} 15. Qxh5 {[%clk
0:02:04.8]} 15... Nd5 {[%clk 0:02:01.8]} 16. Rxf7 {[%clk 0:02:02]} 16... Qxf7
{[%clk 0:01:54.6]} 17. Bg6 {[%clk 0:02:02.2]} 17... Qxg6 {[%clk 0:01:49.6]} 18.
Qxg6+ {[%clk 0:02:03.1]} 18... Kd8 {[%clk 0:01:50.5]} 19. Qxg7 {[%clk
0:02:00.6]} 19... Re8 {[%clk 0:01:48]} 20. c4 {[%clk 0:01:57.4]} 20... Nb6
{[%clk 0:01:44.2]} 21. Bd6 {[%clk 0:01:49.2]} 21... Bd7 {[%clk 0:01:41.3]} 22.
c5 {[%clk 0:01:45.6]} 22... Nc4 {[%clk 0:01:40.4]} 23. Rb1 {[%clk 0:01:42.8]}
23... Nxd6 {[%clk 0:01:39.6]} 24. cxd6 {[%clk 0:01:42.2]} 24... b6 {[%clk
0:01:39.6]} 25. a5 {[%clk 0:01:39.3]} 25... b5 {[%clk 0:01:34.5]} 26. a6 {[%clk
0:01:39.5]} 26... Rb8 {[%clk 0:01:32.3]} 27. Qxh6 {[%clk 0:01:34.7]} 27... Rb6
{[%clk 0:01:31.6]} 28. c4 {[%clk 0:01:30.5]} 28... Rxa6 {[%clk 0:01:26.9]} 29.
cxb5 {[%clk 0:01:29.8]} 29... cxb5 {[%clk 0:01:26.7]} 30. Rc1 {[%clk 0:01:27.5]}
30... Rxd6 {[%clk 0:01:24.3]} 31. Qg5+ {[%clk 0:01:22.4]} 31... Re7 {[%clk
0:01:21.9]} 32. h4 {[%clk 0:01:17.1]} 32... Rxd4 {[%clk 0:01:14.8]} 33. h5
{[%clk 0:01:08.5]} 33... Rd5 {[%clk 0:01:12.9]} 34. Qh4 {[%clk 0:01:07.8]} 34...
Be8 {[%clk 0:01:11.8]} 35. h6 {[%clk 0:01:05.6]} 35... Rh5 {[%clk 0:01:10.7]}
36. Qf6 {[%clk 0:01:00.7]} 36... Rf5 {[%clk 0:01:07]} 37. Qc3 {[%clk 0:00:37.9]}
37... Bd7 {[%clk 0:00:58.3]} 38. Qc7+ {[%clk 0:00:35.2]} 38... Ke8 {[%clk
0:00:57.8]} 39. Qb8+ {[%clk 0:00:34.4]} 39... Kf7 {[%clk 0:00:58.1]} 40. h7
{[%clk 0:00:34.3]} 1-0

[Event "*** Titled Tuesday Blitz"]
[Site "Chess.com"]
[Date "2020.04.07"]
[Round "9"]
[White "CyberneticLion"]
[Black "Tormoz"]
[Result "0-1"]
[WhiteElo "2523"]
[BlackElo "2677"]
[TimeControl "180+1"]
[EndTime "14:46:32 PDT"]
[Termination "Tormoz won by resignation"]

1. e4 {[%clk 0:03:00.9]} 1... e5 {[%clk 0:02:59.7]} 2. Nf3 {[%clk 0:02:57.7]}
2... Nf6 {[%clk 0:02:59.2]} 3. Nc3 {[%clk 0:02:56.9]} 3... Nc6 {[%clk
0:02:58.7]} 4. d4 {[%clk 0:02:56.5]} 4... exd4 {[%clk 0:02:57]} 5. Nxd4 {[%clk
0:02:57.4]} 5... Bc5 {[%clk 0:02:54]} 6. Be3 {[%clk 0:02:56.2]} 6... Bb6 {[%clk
0:02:51.5]} 7. Nf5 {[%clk 0:02:55.9]} 7... O-O {[%clk 0:02:50.3]} 8. Bxb6 {[%clk
0:02:36.1]} 8... axb6 {[%clk 0:02:49.8]} 9. Ne3 {[%clk 0:02:26.9]} 9... Re8
{[%clk 0:02:48.9]} 10. f3 {[%clk 0:02:26.8]} 10... Qe7 {[%clk 0:02:29.1]} 11.
Qd2 {[%clk 0:02:12.4]} 11... Qb4 {[%clk 0:02:22.7]} 12. O-O-O {[%clk 0:02:09]}
12... d6 {[%clk 0:02:14.9]} 13. Ncd5 {[%clk 0:01:32.1]} 13... Nxd5 {[%clk
0:02:12.5]} 14. Nxd5 {[%clk 0:01:30.8]} 14... Qxd2+ {[%clk 0:01:24.9]} 15. Kxd2
{[%clk 0:01:16.1]} 15... Rxa2 {[%clk 0:01:23.3]} 16. Nxc7 {[%clk 0:01:14.4]}
16... Rd8 {[%clk 0:01:23.3]} 17. Kc3 {[%clk 0:01:13]} 17... Ra5 {[%clk
0:00:52.2]} 18. Nb5 {[%clk 0:01:01.5]} 18... Be6 {[%clk 0:00:49.7]} 19. Rxd6
{[%clk 0:00:50.2]} 19... Rc8 {[%clk 0:00:49.7]} 20. Kd2 {[%clk 0:00:48.5]} 20...
Ra1 {[%clk 0:00:49.2]} 21. g3 {[%clk 0:00:38.2]} 21... Ne5 {[%clk 0:00:44.6]}
22. c3 {[%clk 0:00:10.1]} 22... Bc4 {[%clk 0:00:41.3]} 23. Bg2 {[%clk
0:00:02.2]} 23... Rxh1 {[%clk 0:00:38.1]} 24. Bxh1 {[%clk 0:00:03.1]} 24... Bxb5
{[%clk 0:00:38.4]} 25. Rd5 {[%clk 0:00:03.3]} 25... Nc4+ {[%clk 0:00:38.5]} 26.
Kc2 {[%clk 0:00:02.7]} 26... Ne3+ {[%clk 0:00:36.6]} 27. Kb3 {[%clk 0:00:02]}
27... Nxd5 {[%clk 0:00:36.7]} 28. exd5 {[%clk 0:00:02.2]} 28... Bc4+ {[%clk
0:00:37.1]} 0-1

[Event "*** Titled Tuesday Blitz"]
[Site "Chess.com"]
[Date "2020.04.07"]
[Round "9"]
[White "AndreyNeves"]
[Black "coalescenet"]
[Result "0-1"]
[WhiteElo "2192"]
[BlackElo "2350"]
[TimeControl "180+1"]
[EndTime "14:46:32 PDT"]
[Termination "coalescenet won by resignation"]

1. d4 {[%clk 0:03:00.9]} 1... d5 {[%clk 0:02:58.8]} 2. c4 {[%clk 0:03:00.2]}
2... e6 {[%clk 0:02:58.6]} 3. Nc3 {[%clk 0:02:59.4]} 3... Be7 {[%clk 0:02:56.6]}
4. Nf3 {[%clk 0:02:57.2]} 4... Nf6 {[%clk 0:02:55.6]} 5. Bg5 {[%clk 0:02:56.7]}
5... O-O {[%clk 0:02:55.3]} 6. e3 {[%clk 0:02:56.7]} 6... c6 {[%clk 0:02:55.1]}
7. Rc1 {[%clk 0:02:56.3]} 7... Nbd7 {[%clk 0:02:55.4]} 8. Bd3 {[%clk 0:02:56]}
8... dxc4 {[%clk 0:02:45.6]} 9. Bxc4 {[%clk 0:02:55.4]} 9... c5 {[%clk
0:02:44.1]} 10. O-O {[%clk 0:02:53.4]} 10... Nb6 {[%clk 0:02:31.5]} 11. Bd3
{[%clk 0:02:51.2]} 11... cxd4 {[%clk 0:02:30.3]} 12. exd4 {[%clk 0:02:51.2]}
12... Bd7 {[%clk 0:02:29.2]} 13. Ne5 {[%clk 0:02:47.6]} 13... Rc8 {[%clk
0:02:25]} 14. Re1 {[%clk 0:02:41.8]} 14... Bc6 {[%clk 0:02:24]} 15. Bb1 {[%clk
0:02:33.9]} 15... Nbd5 {[%clk 0:02:01.5]} 16. Qd3 {[%clk 0:02:24.8]} 16... Nb4
{[%clk 0:01:59.8]} 17. Qh3 {[%clk 0:02:20.8]} 17... g6 {[%clk 0:01:55.7]} 18.
Bh6 {[%clk 0:02:09.6]} 18... Re8 {[%clk 0:01:55.3]} 19. Nxf7 {[%clk 0:02:04.9]}
19... Qxd4 {[%clk 0:01:19.3]} 20. Ng5 {[%clk 0:01:15.2]} 20... Qg4 {[%clk
0:01:03.5]} 21. Qxg4 {[%clk 0:01:07.8]} 21... Nxg4 {[%clk 0:01:03.6]} 22. Nxe6
{[%clk 0:01:08.3]} 22... Nxh6 {[%clk 0:01:01.8]} 23. a3 {[%clk 0:01:04.8]} 23...
Nd5 {[%clk 0:00:46.3]} 24. Ba2 {[%clk 0:01:03]} 24... Nxc3 {[%clk 0:00:45.2]}
25. Rxc3 {[%clk 0:00:57.4]} 25... Kh8 {[%clk 0:00:41.5]} 26. Rce3 {[%clk
0:00:47.8]} 26... Bf6 {[%clk 0:00:38.1]} 27. b4 {[%clk 0:00:39.8]} 27... Nf5
{[%clk 0:00:36.4]} 28. R3e2 {[%clk 0:00:38.7]} 28... Nd4 {[%clk 0:00:29.4]} 29.
Nxd4 {[%clk 0:00:38]} 29... Bxd4 {[%clk 0:00:29.9]} 30. Rxe8+ {[%clk 0:00:36.1]}
30... Rxe8 {[%clk 0:00:30.4]} 31. Rd1 {[%clk 0:00:35.8]} 31... Bb2 {[%clk
0:00:29.4]} 32. a4 {[%clk 0:00:33.8]} 32... Bxa4 {[%clk 0:00:29.3]} 33. Bd5
{[%clk 0:00:33.4]} 33... Bxd1 {[%clk 0:00:28.1]} 34. g3 {[%clk 0:00:32.9]} 34...
Re5 {[%clk 0:00:22.5]} 0-1

[Event "*** Titled Tuesday Blitz"]
[Site "Chess.com"]
[Date "2020.04.07"]
[Round "9"]
[White "Caracternin123"]
[Black "TheBigBoss04"]
[Result "1-0"]
[WhiteElo "2582"]
[BlackElo "2764"]
[TimeControl "180+1"]
[EndTime "14:46:33 PDT"]
[Termination "Caracternin123 won by resignation"]

1. d4 {[%clk 0:03:00.9]} 1... Nf6 {[%clk 0:02:54.5]} 2. Nf3 {[%clk 0:03:01]}
2... Nc6 {[%clk 0:02:54.6]} 3. d5 {[%clk 0:03:00]} 3... Nb8 {[%clk 0:02:54.1]}
4. c4 {[%clk 0:02:59.1]} 4... g6 {[%clk 0:02:54.4]} 5. Nc3 {[%clk 0:02:58.5]}
5... Bg7 {[%clk 0:02:55]} 6. e4 {[%clk 0:02:58.7]} 6... d6 {[%clk 0:02:55.1]} 7.
Be2 {[%clk 0:02:58.8]} 7... e5 {[%clk 0:02:55.1]} 8. O-O {[%clk 0:02:57.9]} 8...
O-O {[%clk 0:02:55.6]} 9. h3 {[%clk 0:02:56.1]} 9... a5 {[%clk 0:02:54.7]} 10.
Be3 {[%clk 0:02:52]} 10... Na6 {[%clk 0:02:54.4]} 11. Bd3 {[%clk 0:02:38.2]}
11... Nd7 {[%clk 0:02:50.3]} 12. Bc2 {[%clk 0:02:29.7]} 12... h6 {[%clk
0:02:49.9]} 13. g4 {[%clk 0:02:21.8]} 13... Nb4 {[%clk 0:02:45.7]} 14. Bb1
{[%clk 0:02:20.9]} 14... Nb6 {[%clk 0:02:41.2]} 15. Qe2 {[%clk 0:01:24.2]} 15...
f5 {[%clk 0:02:35.8]} 16. exf5 {[%clk 0:01:24.1]} 16... gxf5 {[%clk 0:02:36.5]}
17. gxf5 {[%clk 0:01:24.2]} 17... Bxf5 {[%clk 0:02:20.9]} 18. Bxf5 {[%clk
0:01:23.7]} 18... Rxf5 {[%clk 0:02:21.8]} 19. Ne4 {[%clk 0:01:24.6]} 19... Qd7
{[%clk 0:02:13.2]} 20. Nh4 {[%clk 0:01:15]} 20... Rf7 {[%clk 0:02:11.7]} 21. Kh2
{[%clk 0:01:13.8]} 21... Qe7 {[%clk 0:02:04.9]} 22. Ng6 {[%clk 0:01:08.5]} 22...
Qd7 {[%clk 0:02:04.9]} 23. Rg1 {[%clk 0:01:08.4]} 23... Qf5 {[%clk 0:02:03.4]}
24. Bxh6 {[%clk 0:00:48.2]} 24... Kh7 {[%clk 0:01:31.3]} 25. Nh4 {[%clk
0:00:48.2]} 25... Bxh6 {[%clk 0:00:53.3]} 26. Nxf5 {[%clk 0:00:47.4]} 26... Bf4+
{[%clk 0:00:28.7]} 27. Kh1 {[%clk 0:00:46.8]} 27... Rxf5 {[%clk 0:00:28.2]} 28.
Qg4 {[%clk 0:00:46.4]} 1-0

[Event "*** Titled Tuesday Blitz"]
[Site "Chess.com"]
[Date "2020.04.07"]
[Round "9"]
[White "Tjktiger"]
[Black "ChristopherYoo"]
[Result "1-0"]
[WhiteElo "2850"]
[BlackElo "2671"]
[TimeControl "180+1"]
[EndTime "14:46:37 PDT"]
[Termination "Tjktiger won by resignation"]

1. c4 {[%clk 0:03:00.9]} 1... Nf6 {[%clk 0:02:59]} 2. Nc3 {[%clk 0:03:00.4]}
2... g6 {[%clk 0:02:58.6]} 3. g3 {[%clk 0:02:59.4]} 3... Bg7 {[%clk 0:02:58.5]}
4. Bg2 {[%clk 0:02:59.9]} 4... c6 {[%clk 0:02:41.8]} 5. e4 {[%clk 0:02:59.3]}
5... d5 {[%clk 0:02:34]} 6. cxd5 {[%clk 0:02:58.8]} 6... cxd5 {[%clk 0:02:33.4]}
7. e5 {[%clk 0:02:59.7]} 7... Ne4 {[%clk 0:02:29.2]} 8. d4 {[%clk 0:02:59.7]}
8... Nc6 {[%clk 0:02:14.3]} 9. Nge2 {[%clk 0:02:58.2]} 9... Nxc3 {[%clk
0:01:51.5]} 10. bxc3 {[%clk 0:02:56.8]} 10... O-O {[%clk 0:01:27.1]} 11. h4
{[%clk 0:02:55.7]} 11... h6 {[%clk 0:01:24.1]} 12. Be3 {[%clk 0:02:53.7]} 12...
Bg4 {[%clk 0:01:18.7]} 13. f3 {[%clk 0:02:53]} 13... Be6 {[%clk 0:01:16.4]} 14.
Qd2 {[%clk 0:02:51]} 14... Kh7 {[%clk 0:01:15.7]} 15. Nf4 {[%clk 0:02:44.5]}
15... Bc8 {[%clk 0:00:45.5]} 16. g4 {[%clk 0:02:39.4]} 16... f5 {[%clk 0:00:29]}
17. h5 {[%clk 0:01:58]} 17... g5 {[%clk 0:00:27.9]} 18. Ng6 {[%clk 0:01:58.4]}
18... Rf7 {[%clk 0:00:27.9]} 19. f4 {[%clk 0:01:58.7]} 19... gxf4 {[%clk
0:00:28.1]} 20. Nxf4 {[%clk 0:01:58.3]} 20... fxg4 {[%clk 0:00:21.8]} 21. O-O
{[%clk 0:01:40.8]} 21... e6 {[%clk 0:00:16.1]} 22. Qc2+ {[%clk 0:01:35.3]} 22...
Kg8 {[%clk 0:00:16.1]} 23. Ng6 {[%clk 0:01:17.9]} 23... Ne7 {[%clk 0:00:16.4]}
24. Rxf7 {[%clk 0:00:59.8]} 24... Kxf7 {[%clk 0:00:17.3]} 25. Nxe7 {[%clk
0:00:58.5]} 25... Qxe7 {[%clk 0:00:17.1]} 26. Bxh6 {[%clk 0:00:45.9]} 26... Bxh6
{[%clk 0:00:06.8]} 27. Qg6+ {[%clk 0:00:44.7]} 27... Kf8 {[%clk 0:00:07.4]} 28.
Rf1+ {[%clk 0:00:44.7]} 28... Bf4 {[%clk 0:00:02.3]} 29. Rxf4+ {[%clk
0:00:43.9]} 1-0

[Event "*** Titled Tuesday Blitz"]
[Site "Chess.com"]
[Date "2020.04.07"]
[Round "9"]
[White "TotallyNotAnAlt"]
[Black "kenta1234"]
[Result "1/2-1/2"]
[WhiteElo "2208"]
[BlackElo "2611"]
[TimeControl "180+1"]
[EndTime "14:46:38 PDT"]
[Termination "Game drawn by repetition"]

1. d4 {[%clk 0:03:00.9]} 1... Nf6 {[%clk 0:02:59.8]} 2. c4 {[%clk 0:03:01.2]}
2... g6 {[%clk 0:02:59.7]} 3. Nc3 {[%clk 0:03:01.2]} 3... Bg7 {[%clk 0:02:59.8]}
4. e4 {[%clk 0:03:01.4]} 4... d6 {[%clk 0:02:59.9]} 5. Bd3 {[%clk 0:03:01.6]}
5... O-O {[%clk 0:03:00]} 6. Nge2 {[%clk 0:03:01.8]} 6... e5 {[%clk 0:02:58.5]}
7. d5 {[%clk 0:03:01.1]} 7... a5 {[%clk 0:02:58.7]} 8. O-O {[%clk 0:03:01.5]}
8... Na6 {[%clk 0:02:58.9]} 9. Bg5 {[%clk 0:02:57.6]} 9... Nc5 {[%clk
0:02:58.7]} 10. Bc2 {[%clk 0:02:58.1]} 10... h6 {[%clk 0:02:59.2]} 11. Be3
{[%clk 0:02:57.2]} 11... Ng4 {[%clk 0:02:57.4]} 12. Bd2 {[%clk 0:02:57.8]} 12...
Qh4 {[%clk 0:02:56.3]} 13. h3 {[%clk 0:02:53.8]} 13... Nf6 {[%clk 0:02:55.3]}
14. Ng3 {[%clk 0:02:39.6]} 14... Nh7 {[%clk 0:02:43.8]} 15. Nb5 {[%clk
0:02:25.6]} 15... Ng5 {[%clk 0:02:27.6]} 16. Nxc7 {[%clk 0:02:12.5]} 16... Rb8
{[%clk 0:02:27.3]} 17. Nb5 {[%clk 0:02:10.3]} 17... Ngxe4 {[%clk 0:02:26]} 18.
Nxe4 {[%clk 0:02:05.1]} 18... Nxe4 {[%clk 0:02:26.9]} 19. Bxe4 {[%clk
0:02:01.3]} 19... Qxe4 {[%clk 0:02:27.8]} 20. Nxd6 {[%clk 0:02:01.5]} 20... Qd4
{[%clk 0:02:28.3]} 21. Bc3 {[%clk 0:01:43.7]} 21... Qc5 {[%clk 0:02:27.1]} 22.
Nxc8 {[%clk 0:01:39.9]} 22... Rbxc8 {[%clk 0:02:28]} 23. b3 {[%clk 0:01:38]}
23... b5 {[%clk 0:02:26.9]} 24. Rc1 {[%clk 0:01:31.6]} 24... bxc4 {[%clk
0:02:25.9]} 25. bxc4 {[%clk 0:01:27.2]} 25... Qxc4 {[%clk 0:02:26.3]} 26. Bxa5
{[%clk 0:01:26.9]} 26... Qxa2 {[%clk 0:02:25.8]} 27. Ra1 {[%clk 0:01:18.9]}
27... Qc4 {[%clk 0:02:23.4]} 28. d6 {[%clk 0:01:18.3]} 28... e4 {[%clk
0:02:23.6]} 29. d7 {[%clk 0:01:12.2]} 29... Ra8 {[%clk 0:02:03.8]} 30. Rc1
{[%clk 0:01:12.6]} 30... Qd4 {[%clk 0:02:01.9]} 31. Qxd4 {[%clk 0:01:10.1]}
31... Bxd4 {[%clk 0:02:02]} 32. Rfd1 {[%clk 0:01:10]} 32... Bf6 {[%clk
0:01:57.7]} 33. Bc7 {[%clk 0:00:51.9]} 33... Kg7 {[%clk 0:01:54.6]} 34. Rc4
{[%clk 0:00:50.1]} 34... e3 {[%clk 0:01:51.7]} 35. fxe3 {[%clk 0:00:49.7]} 35...
Bd8 {[%clk 0:01:47.5]} 36. Bxd8 {[%clk 0:00:49.3]} 36... Rfxd8 {[%clk
0:01:47.3]} 37. Rcd4 {[%clk 0:00:46.9]} 37... Ra7 {[%clk 0:01:44.8]} 38. Kf2
{[%clk 0:00:43.3]} 38... Kf6 {[%clk 0:01:45.2]} 39. Rf4+ {[%clk 0:00:37.8]}
39... Ke7 {[%clk 0:01:45]} 40. Re4+ {[%clk 0:00:36.7]} 40... Kf8 {[%clk
0:01:44.8]} 41. Red4 {[%clk 0:00:36.4]} 41... Ke7 {[%clk 0:01:44.9]} 42. Re4+
{[%clk 0:00:36.4]} 42... Kf8 {[%clk 0:01:45.4]} 43. Red4 {[%clk 0:00:36.8]}
43... Ra2+ {[%clk 0:01:42.7]} 44. Kf3 {[%clk 0:00:36.3]} 44... Ra5 {[%clk
0:01:40.9]} 45. g4 {[%clk 0:00:35.7]} 45... h5 {[%clk 0:01:40.5]} 46. gxh5
{[%clk 0:00:33.8]} 46... Rxh5 {[%clk 0:01:41.4]} 47. h4 {[%clk 0:00:33.8]} 47...
Ke7 {[%clk 0:01:38]} 48. Re4+ {[%clk 0:00:34]} 48... Kf8 {[%clk 0:01:38]} 49.
Kg3 {[%clk 0:00:29.7]} 49... Rc5 {[%clk 0:01:35.4]} 50. Red4 {[%clk 0:00:29]}
50... Rc3 {[%clk 0:01:32]} 51. Kf4 {[%clk 0:00:28.5]} 51... Rc5 {[%clk
0:01:31.5]} 52. Rd5 {[%clk 0:00:28.3]} 52... Rc4+ {[%clk 0:01:30.2]} 53. e4
{[%clk 0:00:27.9]} 53... f5 {[%clk 0:01:28.7]} 54. R1d4 {[%clk 0:00:25.8]} 54...
Rxd4 {[%clk 0:01:14.1]} 55. Rxd4 {[%clk 0:00:26.7]} 55... fxe4 {[%clk
0:01:13.7]} 56. Kxe4 {[%clk 0:00:27.6]} 56... Ke7 {[%clk 0:01:11.1]} 57. Kf4
{[%clk 0:00:27.6]} 57... Kf6 {[%clk 0:01:09.5]} 58. Rd6+ {[%clk 0:00:27.6]}
58... Ke7 {[%clk 0:01:09.9]} 59. Rd4 {[%clk 0:00:27.6]} 59... Kf6 {[%clk
0:01:10]} 60. Rd6+ {[%clk 0:00:27.7]} 60... Ke7 {[%clk 0:01:10.4]} 61. Rd4
{[%clk 0:00:26.4]} 1/2-1/2

[Event "*** Titled Tuesday Blitz"]
[Site "Chess.com"]
[Date "2020.04.07"]
[Round "9"]
[White "Antipov_Mikhail_Al"]
[Black "Sebastian"]
[Result "1-0"]
[WhiteElo "2966"]
[BlackElo "2996"]
[TimeControl "180+1"]
[EndTime "14:46:40 PDT"]
[Termination "Antipov_Mikhail_Al won by checkmate"]

1. e4 {[%clk 0:03:00.9]} 1... c5 {[%clk 0:02:59.3]} 2. Nf3 {[%clk 0:03:01]} 2...
d6 {[%clk 0:02:59.8]} 3. d4 {[%clk 0:03:01.2]} 3... cxd4 {[%clk 0:03:00]} 4.
Nxd4 {[%clk 0:03:02.1]} 4... Nf6 {[%clk 0:03:00.5]} 5. f3 {[%clk 0:03:02.7]}
5... e5 {[%clk 0:02:58]} 6. Nb3 {[%clk 0:03:02.9]} 6... Be7 {[%clk 0:02:51.4]}
7. c4 {[%clk 0:03:01.5]} 7... a5 {[%clk 0:02:51.7]} 8. Nc3 {[%clk 0:03:01.5]}
8... a4 {[%clk 0:02:46.6]} 9. Nd2 {[%clk 0:03:01.3]} 9... Qa5 {[%clk 0:02:44]}
10. Ndb1 {[%clk 0:03:01.5]} 10... O-O {[%clk 0:02:41.1]} 11. Bd2 {[%clk
0:02:57.3]} 11... Bd8 {[%clk 0:02:12.7]} 12. Na3 {[%clk 0:02:51.5]} 12... Nc6
{[%clk 0:02:06.1]} 13. Nab5 {[%clk 0:02:47.3]} 13... Qa6 {[%clk 0:01:25.1]} 14.
Nd5 {[%clk 0:02:46.8]} 14... Rb8 {[%clk 0:00:55.6]} 15. b4 {[%clk 0:02:36.4]}
15... Nd4 {[%clk 0:00:45.9]} 16. Nxd4 {[%clk 0:02:25.2]} 16... exd4 {[%clk
0:00:45.4]} 17. b5 {[%clk 0:02:21]} 17... Qa7 {[%clk 0:00:40.1]} 18. Bd3 {[%clk
0:02:21.1]} 18... Nxd5 {[%clk 0:00:39.2]} 19. cxd5 {[%clk 0:02:11]} 19... Ba5
{[%clk 0:00:38.8]} 20. O-O {[%clk 0:02:09.8]} 20... Bxd2 {[%clk 0:00:37.2]} 21.
Qxd2 {[%clk 0:02:10.7]} 21... Bd7 {[%clk 0:00:36.8]} 22. Qb4 {[%clk 0:02:07.3]}
22... Qb6 {[%clk 0:00:33]} 23. Rac1 {[%clk 0:01:56.7]} 23... Rfc8 {[%clk
0:00:33.2]} 24. Kh1 {[%clk 0:01:47.3]} 24... Ra8 {[%clk 0:00:28.8]} 25. a3
{[%clk 0:01:43]} 25... g6 {[%clk 0:00:28.2]} 26. h4 {[%clk 0:01:33.1]} 26... h5
{[%clk 0:00:27.8]} 27. Kh2 {[%clk 0:01:33]} 27... Kg7 {[%clk 0:00:20.1]} 28. f4
{[%clk 0:01:30.6]} 28... Kg8 {[%clk 0:00:18.6]} 29. f5 {[%clk 0:01:27.7]} 29...
Qd8 {[%clk 0:00:18.4]} 30. fxg6 {[%clk 0:01:06.5]} 30... fxg6 {[%clk 0:00:16]}
31. Qxd6 {[%clk 0:01:02.5]} 31... Qxh4+ {[%clk 0:00:15.7]} 32. Kg1 {[%clk
0:01:02.5]} 32... Qg4 {[%clk 0:00:15.5]} 33. Rxc8+ {[%clk 0:00:56.8]} 33... Rxc8
{[%clk 0:00:15.3]} 34. e5 {[%clk 0:00:56.6]} 34... Be8 {[%clk 0:00:05.1]} 35.
Rf8+ {[%clk 0:00:48.1]} 35... Kh7 {[%clk 0:00:05.2]} 36. Qe7+ {[%clk 0:00:49]}
36... Kh6 {[%clk 0:00:05]} 37. Rh8# {[%clk 0:00:48.9]} 1-0